bitfinex/quotes_BTCUSD_20241014
["timestamp","ask_amount","ask_price","bid_price","bid_amount"]
[1728921149342,0.0062111,66006.0,66005.0,0.969335]
[1728921149557,0.0881111,66006.0,66005.0,0.969335]
[1728921150003,0.0881111,66006.0,66005.0,0.983335]
[1728921150243,0.0881111,66006.0,66005.0,0.969335]
[1728921150704,0.0881111,66006.0,66005.0,0.955335]
[1728921151125,0.0881111,66006.0,66005.0,0.966335]
[1728921151345,0.0881111,66006.0,66005.0,0.955335]
[1728921152327,0.0881111,66006.0,66005.0,0.969335]
[1728921152766,0.0881111,66006.0,66005.0,0.955335]
[1728921153240,0.0881111,66006.0,66005.0,0.965335]
[1728921154147,0.0062111,66006.0,66005.0,1.116838]
[1728921154401,0.0062111,66006.0,66005.0,0.965335]
[1728921159046,0.0062111,66006.0,66005.0,0.465335]
[1728921159556,0.34948032,66006.0,66005.0,0.465335]
[1728921159777,0.46105516,66006.0,66005.0,0.465335]
[1728921160721,0.46104001,66006.0,66005.0,0.465335]
[1728921160952,0.46104001,66006.0,66005.0,0.461335]
[1728921161394,0.46204001,66006.0,66005.0,0.461335]
[1728921162061,0.46204001,66006.0,66005.0,0.455335]
[1728921163866,1.0867367,66006.0,66005.0,0.455335]
[1728921164090,1.15660084,66006.0,66005.0,0.455335]
[1728921164314,1.17922603,66006.0,66005.0,0.455335]
[1728921164535,1.13347939,66006.0,66005.0,0.455335]
[1728921164889,1.54941839,66006.0,66005.0,0.455335]
[1728921165574,1.54941839,66006.0,66005.0,0.456335]
[1728921165800,1.54841839,66006.0,66005.0,0.456335]
[1728921166024,1.37765017,66006.0,66005.0,0.456335]
[1728921166485,1.37165017,66006.0,66005.0,0.456335]
[1728921166937,1.37165017,66006.0,66005.0,0.457335]
[1728921166938,1.37765017,66006.0,66005.0,0.457335]
[1728921167166,1.39348986,66006.0,66005.0,0.457335]
[1728921167388,1.37086467,66006.0,66005.0,0.457335]
[1728921167621,1.35671623,66006.0,66005.0,0.457335]
[1728921167847,1.54959892,66006.0,66005.0,0.45713437]
[1728921168074,1.57218203,66006.0,66005.0,0.45713437]
[1728921168321,1.54959892,66006.0,66005.0,0.45713437]
[1728921168553,1.54759892,66006.0,66005.0,0.45713437]
[1728921169236,1.54759892,66006.0,66005.0,0.00262437]
[1728921169459,1.59334556,66006.0,66005.0,0.00262437]
[1728921169695,1.61791377,66006.0,66005.0,0.00262437]
[1728921169939,1.57216713,66006.0,66005.0,0.00262437]
[1728921170357,2.85572813,66006.0,66005.0,0.00262437]
[1728921170783,2.90147477,66006.0,66005.0,0.00262437]
[1728921171300,2.85572813,66006.0,66005.0,0.00262437]
[1728921171740,2.7896167,66006.0,66005.0,0.00262437]
[1728921171959,3.33642699,66006.0,66005.0,0.00262437]
[1728921172354,1.86650899,66006.0,66005.0,0.00262437]
[1728921172571,1.86450899,66006.0,66005.0,0.00262437]
[1728921172794,1.82549599,66006.0,66005.0,0.00262437]
[1728921172993,1.72708799,66006.0,66005.0,0.00262437]
[1728921173186,1.15409699,66006.0,66005.0,0.00262437]
[1728921173360,1.15409071,66006.0,66005.0,0.00262437]
[1728921173827,0.97732246,66006.0,66005.0,0.00262437]
[1728921174487,1.15409068,66006.0,66005.0,0.00262437]
[1728921175038,1.15609068,66006.0,66005.0,0.00262437]
[1728921175247,1.15409068,66006.0,66005.0,0.00262437]
[1728921175451,1.52665968,66006.0,66005.0,0.00262437]
[1728921175661,1.50410862,66006.0,66005.0,0.00262437]
[1728921175866,1.52666834,66006.0,66005.0,0.00262437]
[1728921177384,1.52466834,66006.0,66005.0,0.00262437]
[1728921178059,1.49734377,66006.0,66005.0,0.00262437]
[1728921178263,1.5417438,66006.0,66005.0,0.00262437]
[1728921178470,1.5397438,66006.0,66005.0,0.00262437]
[1728921179157,1.5417438,66006.0,66005.0,0.00262437]
[1728921179374,1.52669294,66006.0,66005.0,0.00262437]
[1728921180457,1.52469294,66006.0,66005.0,0.00262437]
[1728921180886,1.52669294,66006.0,66005.0,0.00262437]
[1728921181326,1.62239451,66006.0,66005.0,0.00262437]
[1728921181544,1.5744483,66006.0,66005.0,0.00262437]
[1728921181777,1.47198466,66006.0,66005.0,0.00262437]
[1728921182200,1.4606857,66006.0,66005.0,0.00262437]
[1728921182653,1.4586857,66006.0,66005.0,0.00262437]
[1728921182904,1.5247906,66006.0,66005.0,0.00262437]
[1728921183144,1.5267906,66006.0,66005.0,0.00262437]
[1728921184299,1.68043111,66006.0,66005.0,0.00262437]
[1728921184518,1.68043111,66006.0,65991.0,0.22727445]
[1728921184519,0.71240122,65992.0,65991.0,0.22727445]
[1728921184743,0.89530964,65992.0,65991.0,0.22727445]
[1728921184962,0.151551,65984.0,65983.0,0.22727445]
[1728921185167,0.16285098,65984.0,65983.0,0.22727445]
[1728921185455,0.01129998,65984.0,65978.0,0.22727445]
[1728921185658,0.16284898,65985.0,65982.0,0.151554]
[1728921185884,0.156555,65983.0,65980.0,0.15156]
[1728921186113,0.005,65983.0,65978.0,0.151564]
[1728921186342,0.151559,65981.0,65978.0,0.151564]
[1728921186585,0.308108,65983.0,65977.0,0.076325]
[1728921186829,0.005,65983.0,65981.0,0.151557]
[1728921187038,0.151557,65982.0,65978.0,0.460695]
[1728921187264,0.151557,65982.0,65978.0,0.157564]
[1728921187716,0.001,65981.0,65978.0,0.013]
[1728921187945,0.156563,65979.0,65978.0,0.006]
[1728921188190,0.16787344,65979.0,65978.0,0.006]
[1728921188647,0.151565,65978.0,65977.0,0.000825]
[1728921188877,0.16287544,65978.0,65977.0,0.000825]
[1728921189104,0.17287544,65978.0,65977.0,0.000825]
[1728921190042,0.02131044,65978.0,65977.0,0.000825]
[1728921190699,0.01131044,65978.0,65977.0,0.418092]
[1728921190715,0.005,65981.0,65980.0,0.151561]
[1728921190931,0.01632378,65981.0,65980.0,0.151561]
[1728921191370,0.01632378,65981.0,65978.0,0.303954]
[1728921191371,0.005,65980.0,65979.0,0.151563]
[1728921191587,0.01632378,65980.0,65979.0,0.151563]
[1728921191809,0.01632378,65980.0,65978.0,0.000825]
[1728921191810,0.005,65979.0,65978.0,0.000825]
[1728921192019,0.01632378,65979.0,65978.0,0.15239]
[1728921192231,0.01132378,65979.0,65978.0,0.15239]
[1728921192452,0.01632378,65979.0,65978.0,0.000825]
[1728921193126,0.17288678,65979.0,65978.0,0.000825]
[1728921193388,0.19602446,65979.0,65978.0,0.000825]
[1728921193606,0.19602446,65979.0,65978.0,0.001825]
[1728921194308,0.36372127,65979.0,65978.0,0.001825]
[1728921194523,0.33425787,65979.0,65978.0,0.001825]
[1728921194742,0.3637242,65979.0,65978.0,0.001825]
[1728921194973,0.36372392,65979.0,65978.0,0.001825]
[1728921195199,0.36372392,65979.0,65978.0,0.004825]
[1728921195420,0.36372392,65979.0,65978.0,0.001825]
[1728921195866,0.36472392,65979.0,65978.0,0.001825]
[1728921196101,0.75802392,65979.0,65978.0,0.000825]
[1728921196334,0.78903336,65979.0,65978.0,0.000825]
[1728921196559,0.79503336,65979.0,65978.0,0.000825]
[1728921197039,0.79703336,65979.0,65978.0,0.000825]
[1728921198148,0.558565,65978.0,65977.0,0.000825]
[1728921198388,2.70792547,65978.0,65977.0,0.000825]
[1728921198627,2.17979096,65978.0,65977.0,0.000825]
[1728921199054,0.78033396,65978.0,65977.0,0.000825]
[1728921199263,2.56707196,65978.0,65977.0,0.000825]
[1728921199504,2.56707196,65978.0,65977.0,0.001825]
[1728921199505,2.57307196,65978.0,65977.0,0.001825]
[1728921199726,2.57299673,65978.0,65977.0,0.001825]
[1728921200628,0.166597,65964.0,65963.0,0.22727445]
[1728921200877,0.6263095,65964.0,65963.0,0.22727445]
[1728921201094,0.161604,65961.0,65960.0,0.000825]
[1728921201323,0.161604,65961.0,65960.0,0.00027357]
[1728921201324,0.44954828,65961.0,65960.0,0.00027357]
[1728921201759,0.53054828,65961.0,65960.0,0.00027357]
[1728921202007,0.91503441,65961.0,65960.0,0.00027357]
[1728921202279,0.91503387,65961.0,65960.0,0.00027357]
[1728921202485,0.9009165,65961.0,65960.0,0.00027357]
[1728921202724,0.9109165,65961.0,65960.0,0.00027357]
[1728921202954,0.94792099,65961.0,65960.0,0.00027357]
[1728921203177,0.95092099,65961.0,65960.0,0.00027357]
[1728921203432,0.77415277,65961.0,65960.0,0.00027357]
[1728921203662,0.95092099,65961.0,65960.0,0.00027357]
[1728921204979,0.94792099,65961.0,65960.0,0.00027357]
[1728921205245,0.96492099,65961.0,65960.0,0.00227357]
[1728921206157,0.96481194,65961.0,65960.0,0.00227357]
[1728921206590,0.96478785,65961.0,65960.0,0.00227357]
[1728921206807,0.97326335,65961.0,65960.0,0.00227357]
[1728921207494,0.33580543,65961.0,65960.0,0.00227357]
[1728921207713,0.29487583,65961.0,65960.0,0.00227357]
[1728921208397,0.29487583,65961.0,65942.0,0.002]
[1728921208398,0.03,65947.0,65941.0,0.0001001]
[1728921208640,0.03,65947.0,65944.0,0.22727445]
[1728921208641,0.73057605,65947.0,65944.0,0.22727445]
[1728921208879,0.74860692,65947.0,65941.0,0.0001001]
[1728921209350,0.85453892,65947.0,65941.0,0.0001001]
[1728921209566,1.00606739,65947.0,65941.0,0.0001001]
[1728921209777,1.18483561,65947.0,65941.0,0.0001001]
[1728921209999,1.21393022,65947.0,65941.0,0.0001001]
[1728921210214,1.19890869,65947.0,65941.0,0.0001001]
[1728921210444,1.21391007,65947.0,65941.0,0.0001001]
[1728921210671,1.21391007,65947.0,65938.0,0.000825]
[1728921210672,1.04814185,65947.0,65946.0,0.001826]
[1728921211160,1.19583561,65947.0,65946.0,0.001826]
[1728921211783,0.84229917,65947.0,65946.0,0.001826]
[1728921212048,1.03945289,65947.0,65946.0,0.002826]
[1728921212264,0.67462089,65947.0,65946.0,0.002826]
[1728921214113,0.67462089,65947.0,65924.0,0.0001001]
[1728921214114,0.35918,65928.0,65924.0,0.0001001]
[1728921214357,1.70209291,65928.0,65924.0,0.22737455]
[1728921214573,1.73133857,65928.0,65924.0,0.0001001]
[1728921214787,1.74631933,65928.0,65924.0,0.0001001]
[1728921215490,1.73133857,65928.0,65924.0,0.0001001]
[1728921216035,1.24575035,65928.0,65924.0,0.0001001]
[1728921216126,1.00417035,65928.0,65924.0,0.0001001]
[1728921216595,1.01617035,65928.0,65927.0,0.001825]
[1728921217056,1.01048628,65928.0,65927.0,0.001825]
[1728921217291,1.02448628,65928.0,65927.0,0.001825]
[1728921217534,1.02442515,65928.0,65927.0,0.001825]
[1728921219601,0.83532515,65928.0,65927.0,0.001825]
[1728921220008,0.78022506,65928.0,65927.0,0.001825]
[1728921221455,0.75104053,65928.0,65927.0,0.001825]
[1728921221653,0.78024075,65928.0,65927.0,0.001825]
[1728921223007,0.74284084,65928.0,65927.0,0.001825]
[1728921223232,0.74784084,65928.0,65927.0,0.001825]
[1728921223462,0.75784084,65928.0,65927.0,0.001825]
[1728921223712,0.75284084,65928.0,65927.0,0.001825]
[1728921223929,0.75784084,65928.0,65927.0,0.001825]
[1728921224171,0.48472462,65928.0,65927.0,0.001825]
[1728921224397,0.49672462,65928.0,65927.0,0.001825]
[1728921224612,0.37340869,65928.0,65927.0,0.001825]
[1728921224841,0.20191085,65928.0,65927.0,0.001825]
[1728921225309,0.19068,65928.0,65927.0,0.001825]
[1728921225550,0.18992766,65928.0,65927.0,0.000825]
[1728921225777,0.18392766,65928.0,65927.0,0.001825]
[1728921226006,0.29192766,65928.0,65927.0,0.001825]
[1728921226279,0.28592766,65928.0,65927.0,0.000825]
[1728921226506,0.005,65930.0,65927.0,0.000825]
[1728921226751,0.015,65930.0,65928.0,0.42168]
[1728921227185,0.015,65930.0,65928.0,0.421679]
[1728921227417,0.015,65930.0,65928.0,0.27]
[1728921228295,0.015,65930.0,65928.0,0.421679]
[1728921228504,0.015,65930.0,65929.0,0.151678]
[1728921228505,0.005,65930.0,65929.0,0.151678]
[1728921228737,0.005,65930.0,65928.0,0.421679]
[1728921229169,0.005,65930.0,65928.0,0.27]
[1728921229391,0.005,65930.0,65929.0,0.151677]
[1728921229618,0.005,65930.0,65929.0,0.151678]
[1728921229810,0.005,65931.0,65928.0,0.27]
[1728921230041,0.015,65934.0,65930.0,0.151675]
[1728921230278,0.01127002,65933.0,65928.0,0.276]
[1728921230505,0.01127002,65932.0,65930.0,0.151675]
[1728921230734,0.01127002,65931.0,65930.0,0.151675]
[1728921230955,0.01127002,65931.0,65929.0,0.151677]
[1728921231180,0.005,65930.0,65929.0,0.151678]
[1728921231450,0.01627758,65930.0,65929.0,0.151678]
[1728921232548,0.01127758,65930.0,65929.0,0.151678]
[1728921232813,0.01627758,65930.0,65929.0,0.151678]
[1728921233490,0.01627758,65930.0,65927.0,0.000825]
[1728921233712,0.01627758,65930.0,65927.0,0.152506]
[1728921233713,0.01127758,65929.0,65927.0,0.152506]
[1728921233944,0.006,65930.0,65927.0,0.152506]
[1728921234164,0.15668,65928.0,65927.0,0.000825]
[1728921234390,0.01628352,65928.0,65927.0,0.000825]
[1728921234602,0.16796352,65928.0,65927.0,0.000825]
[1728921234832,0.19602003,65928.0,65927.0,0.000825]
[1728921235530,0.29602003,65928.0,65927.0,0.000825]
[1728921235781,0.4495485,65928.0,65927.0,0.000825]
[1728921236715,0.4505485,65928.0,65927.0,0.008825]
[1728921236946,0.4515485,65928.0,65927.0,0.008825]
[1728921237163,0.4505485,65928.0,65927.0,0.008825]
[1728921237607,0.4555485,65928.0,65927.0,0.000825]
[1728921238490,0.30202003,65928.0,65927.0,0.000825]
[1728921238729,0.04034003,65928.0,65927.0,0.081425]
[1728921239025,0.03834003,65928.0,65927.0,0.233107]
[1728921239248,0.02028352,65928.0,65927.0,0.233107]
[1728921239480,0.01728352,65928.0,65927.0,0.233107]
[1728921239696,0.006,65928.0,65927.0,0.233107]
[1728921240169,0.01730206,65928.0,65927.0,0.233107]
[1728921240406,0.003,65928.0,65927.0,0.233107]
[1728921240861,0.015,65935.0,65927.0,0.081425]
[1728921241098,0.0113024,65934.0,65927.0,0.081425]
[1728921241310,0.0113024,65934.0,65930.0,0.30335]
[1728921241574,0.0113024,65934.0,65927.0,0.081425]
[1728921241575,0.01583969,65934.0,65931.0,0.303345]
[1728921241804,0.01583969,65934.0,65933.0,0.151669]
[1728921242028,0.02714094,65934.0,65933.0,0.151669]
[1728921242494,0.01583969,65934.0,65933.0,0.151669]
[1728921243616,0.01683969,65934.0,65933.0,0.159669]
[1728921244038,0.01683969,65934.0,65933.0,0.250569]
[1728921244262,0.01783969,65934.0,65933.0,0.250569]
[1728921244756,0.002,65934.0,65933.0,0.66516257]
[1728921244965,0.002,65934.0,65933.0,0.76369512]
[1728921245195,0.002,65934.0,65933.0,0.78632767]
[1728921245445,0.002,65934.0,65933.0,0.80696022]
[1728921245679,0.002,65934.0,65933.0,0.78433374]
[1728921245913,0.001,65934.0,65933.0,0.68579747]
[1728921246151,0.002,65934.0,65933.0,0.80696022]
[1728921246388,0.002,65934.0,65933.0,0.78433411]
[1728921246647,0.002,65934.0,65933.0,0.80696022]
[1728921246878,0.001,65934.0,65933.0,0.73299682]
[1728921247142,0.002,65934.0,65933.0,0.74299682]
[1728921247382,0.002,65934.0,65933.0,0.69579747]
[1728921247844,0.002,65934.0,65933.0,0.69379747]
[1728921248296,0.001,65934.0,65933.0,0.69379747]
[1728921248533,0.001,65934.0,65933.0,0.69579747]
[1728921248758,0.001,65934.0,65933.0,0.74294956]
[1728921248974,0.001,65934.0,65933.0,0.70179747]
[1728921248975,0.002,65934.0,65933.0,0.70179747]
[1728921249218,0.001,65934.0,65933.0,0.69579747]
[1728921249687,0.002,65934.0,65933.0,0.70179747]
[1728921249921,0.002,65934.0,65933.0,0.69979747]
[1728921250155,0.002,65934.0,65933.0,0.79232205]
[1728921250372,0.002,65934.0,65933.0,0.79231102]
[1728921251563,0.002,65934.0,65933.0,0.69979747]
[1728921251833,0.002,65934.0,65933.0,0.76967778]
[1728921252545,0.002,65934.0,65933.0,0.70179747]
[1728921253230,0.002,65934.0,65933.0,0.69979747]
[1728921253462,0.002,65934.0,65933.0,0.74504399]
[1728921254156,0.002,65934.0,65933.0,1.24704399]
[1728921254837,0.15,65947.0,65937.0,0.005]
[1728921255054,0.15,65947.0,65946.0,0.447539]
[1728921255055,0.12890625,65947.0,65946.0,0.447539]
[1728921255289,0.22727445,65958.0,65957.0,0.455413]
[1728921255512,0.22727445,65958.0,65957.0,1.25082697]
[1728921255771,0.22727445,65958.0,65951.0,0.11298888]
[1728921255772,0.005,65953.0,65951.0,0.11298888]
[1728921256005,0.005,65953.0,65933.0,0.006]
[1728921256006,0.005,65944.0,65940.0,0.22727445]
[1728921256243,0.005,65942.0,65940.0,0.22727445]
[1728921256701,0.005,65942.0,65940.0,0.151652]
[1728921256932,0.005,65942.0,65925.0,0.002]
[1728921257144,0.005,65942.0,65939.0,0.5]
[1728921257384,0.005,65942.0,65938.0,0.303313]
[1728921257609,0.005,65942.0,65938.0,0.151655]
[1728921258074,0.005,65942.0,65939.0,0.151654]
[1728921258302,0.156649,65942.0,65936.0,0.1517601]
[1728921258519,0.005,65942.0,65937.0,0.303318]
[1728921258758,0.005,65942.0,65937.0,0.151658]
[1728921258982,0.005,65942.0,65936.0,0.0001001]
[1728921259445,0.156659,65937.0,65936.0,0.0001001]
[1728921260169,0.005,65937.0,65934.0,0.5]
[1728921260395,0.151664,65935.0,65934.0,0.5]
[1728921260610,0.005,65937.0,65934.0,0.5]
[1728921261085,0.156661,65937.0,65934.0,0.5]
[1728921261540,0.005,65937.0,65934.0,0.5]
[1728921262479,0.005,65940.0,65939.0,0.151655]
[1728921262693,0.005,65940.0,65934.0,0.5]
[1728921262694,0.005,65939.0,65938.0,0.151657]
[1728921263125,0.005,65948.0,65945.0,0.151641]
[1728921263347,0.22727445,65947.0,65946.0,0.0941]
[1728921263579,0.22727445,65955.0,65946.0,0.0941]
[1728921263580,0.005,65954.0,65951.0,0.151626]
[1728921263805,0.005,65953.0,65948.0,0.0941]
[1728921264020,0.005,65952.0,65951.0,0.151626]
[1728921264228,0.005,65952.0,65949.0,0.30326]
[1728921264451,0.01,65956.0,65949.0,0.151632]
[1728921264452,0.005,65950.0,65949.0,0.151632]
[1728921264856,0.005,65950.0,65948.0,0.0941]
[1728921265079,0.005,65950.0,65948.0,0.245734]
[1728921265279,0.005,65949.0,65948.0,0.245734]
[1728921265499,0.005,65949.0,65948.0,0.0941]
[1728921265665,0.005,65949.0,65948.0,0.245734]
[1728921265867,0.005,65949.0,65948.0,0.0941]
[1728921267123,0.156632,65949.0,65948.0,0.1041]
[1728921268025,0.005,65949.0,65948.0,0.1001]
[1728921268419,0.005,65949.0,65948.0,0.1031]
[1728921268807,0.00481679,65949.0,65948.0,0.1031]
[1728921269004,0.00481679,65949.0,65948.0,0.0971]
[1728921269381,0.00481679,65949.0,65948.0,0.1021]
[1728921269989,0.00481679,65949.0,65948.0,0.0941]
[1728921270212,0.00481679,65949.0,65948.0,0.0991]
[1728921270413,0.00481679,65949.0,65948.0,0.1021]
[1728921270712,0.00481679,65949.0,65948.0,0.253734]
[1728921271184,0.00481679,65949.0,65948.0,0.1021]
[1728921272120,0.00481679,65949.0,65948.0,0.102925]
[1728921273031,0.00481679,65949.0,65948.0,0.254559]
[1728921273477,0.00481679,65949.0,65948.0,0.102925]
[1728921273923,0.00481679,65949.0,65948.0,0.254559]
[1728921274367,0.00481679,65953.0,65948.0,0.102925]
[1728921274581,0.00481679,65953.0,65952.0,0.151625]
[1728921274795,0.00481679,65953.0,65951.0,0.151626]
[1728921274982,0.01,65955.0,65951.0,0.151626]
[1728921274983,0.00481679,65952.0,65951.0,0.151626]
[1728921275412,0.00481679,65951.0,65950.0,0.41043091]
[1728921275566,0.00481679,65951.0,65950.0,0.151629]
[1728921275774,0.00481679,65951.0,65950.0,0.15163]
[1728921276512,0.00581679,65953.0,65952.0,0.151625]
[1728921276957,0.001,65953.0,65952.0,0.151625]
[1728921277263,0.001,65953.0,65952.0,0.228125]
[1728921277731,0.00481679,65956.0,65953.0,0.151622]
[1728921277915,0.00481679,65956.0,65954.0,0.15162]
[1728921278331,0.00481679,65956.0,65955.0,0.151618]
[1728921278781,0.00481679,65956.0,65955.0,0.651618]
[1728921279666,0.00165,65957.0,65955.0,0.651618]
[1728921279926,0.00165,65957.0,65956.0,0.151616]
[1728921280147,0.00165,65957.0,65956.0,0.30514447]
[1728921280410,0.00165,65957.0,65956.0,0.79644835]
[1728921280628,0.00165,65957.0,65956.0,0.72852608]
[1728921281062,0.15165,65957.0,65956.0,0.72852608]
[1728921281280,0.15165,65957.0,65956.0,1.44217799]
[1728921281488,0.15165,65957.0,65956.0,1.46278989]
[1728921281716,0.15265,65957.0,65956.0,1.37787959]
[1728921281951,0.15165,65957.0,65956.0,1.36487959]
[1728921282444,0.15265,65957.0,65956.0,1.37787959]
[1728921282876,0.15165,65957.0,65956.0,1.36487959]
[1728921283086,0.15165,65957.0,65956.0,1.36469638]
[1728921283304,0.15165,65957.0,65956.0,1.36487959]
[1728921283525,0.15165,65957.0,65956.0,1.39013863]
[1728921283757,0.15165,65957.0,65956.0,1.40213863]
[1728921284206,0.15165,65957.0,65956.0,1.45607867]
[1728921284430,0.15165,65957.0,65956.0,1.47870165]
[1728921284662,0.15265,65957.0,65956.0,1.49270165]
[1728921284884,0.15165,65957.0,65956.0,1.47870165]
[1728921285141,0.15265,65957.0,65956.0,1.49270165]
[1728921285367,0.15265,65957.0,65956.0,1.40213863]
[1728921285597,0.15265,65957.0,65956.0,1.49270165]
[1728921285816,0.15265,65957.0,65956.0,1.23260165]
[1728921286262,0.15265,65957.0,65956.0,1.24660165]
[1728921288557,0.001652,65960.0,65959.0,0.176609]
[1728921288798,0.001652,65960.0,65959.0,1.11493516]
[1728921289243,0.001652,65960.0,65959.0,1.04695068]
[1728921289460,0.001652,65960.0,65959.0,1.11492458]
[1728921289668,0.001652,65960.0,65959.0,1.04495068]
[1728921289878,0.001652,65960.0,65959.0,1.05895068]
[1728921291262,0.001652,65960.0,65959.0,1.41240504]
[1728921291399,0.002652,65960.0,65959.0,1.42640504]
[1728921291623,0.002652,65960.0,65959.0,1.24967786]
[1728921292235,0.002652,65960.0,65959.0,1.31762401]
[1728921295195,0.002652,65960.0,65959.0,1.24967786]
[1728921295412,0.002652,65960.0,65959.0,1.42640504]
[1728921297435,0.002652,65960.0,65959.0,1.47168606]
[1728921298267,0.002652,65960.0,65959.0,1.42640504]
[1728921298701,0.002652,65960.0,65959.0,1.31759995]
[1728921299545,0.002652,65960.0,65959.0,1.31959995]
[1728921299755,0.002652,65960.0,65959.0,1.31759995]
[1728921299980,0.002652,65960.0,65959.0,1.49432713]
[1728921300203,0.22727445,65980.0,65967.0,0.00018321]
[1728921300445,0.22727445,65980.0,65978.0,0.32829218]
[1728921301127,0.00481679,65985.0,65978.0,0.32829218]
[1728921301811,0.002652,65979.0,65978.0,0.63142718]
[1728921302045,0.002652,65979.0,65978.0,0.9547]
[1728921302257,0.001652,65979.0,65978.0,0.9547]
[1728921302472,0.27716879,65979.0,65978.0,0.9607]
[1728921302698,0.27716879,65979.0,65978.0,0.9697]
[1728921302935,0.27716879,65979.0,65978.0,0.9637]
[1728921303126,0.27716879,65979.0,65978.0,0.9667]
[1728921303578,0.27716879,65979.0,65978.0,0.9637]
[1728921304490,0.27716879,65979.0,65978.0,0.9547]
[1728921304900,0.27716879,65979.0,65978.0,0.9607]
[1728921305114,0.27716879,65979.0,65978.0,0.9627]
[1728921305565,0.27716879,65979.0,65978.0,0.9567]
[1728921306026,0.27716879,65979.0,65978.0,0.9617]
[1728921307099,0.27716879,65979.0,65978.0,1.113265]
[1728921307321,0.001652,65979.0,65978.0,1.113265]
[1728921307562,0.0753,65990.0,65978.0,1.113265]
[1728921307563,0.083,65997.0,65978.0,1.51725113]
[1728921307789,0.23209124,66000.0,65992.0,0.151533]
[1728921308086,0.22727445,65993.0,65992.0,0.151533]
[1728921308248,0.23209124,66000.0,65993.0,0.303062]
[1728921308483,0.23209124,66000.0,65995.0,0.303052]
[1728921308713,0.207252,66004.0,65995.0,0.303052]
[1728921308714,0.207252,66004.0,65997.0,0.25844319]
[1728921308952,0.309626,66013.0,65996.0,0.45456]
[1728921308953,0.01,66010.0,66002.0,0.25844319]
[1728921309178,0.01,66010.0,66003.0,0.45452]
[1728921309429,0.01,66010.0,66006.0,0.1515]
[1728921309661,0.01,66010.0,66005.0,0.151503]
[1728921309897,0.01,66010.0,66003.0,0.606028]
[1728921310127,0.01,66010.0,66006.0,0.151501]
[1728921310375,0.01,66010.0,66003.0,0.45452]
[1728921310376,0.01,66010.0,66004.0,0.151504]
[1728921310585,0.01,66010.0,66005.0,0.45451]
[1728921311983,0.01,66010.0,66006.0,0.1515]
[1728921312229,0.01,66010.0,66007.0,0.4545]
[1728921312460,0.083,66011.0,66007.0,1.01594119]
[1728921312679,0.001652,66013.0,66007.0,0.71294319]
[1728921312901,0.001652,66013.0,66012.0,0.25844319]
[1728921313828,0.001652,66013.0,66012.0,0.40993019]
[1728921314303,0.001652,66013.0,66012.0,0.56345866]
[1728921314551,0.001652,66013.0,66012.0,1.01791866]
[1728921314794,0.001652,66013.0,66012.0,1.51791866]
[1728921315268,0.001652,66013.0,66012.0,1.52591866]
[1728921315740,0.001652,66013.0,66012.0,1.51791866]
[1728921316195,0.001652,66013.0,66012.0,1.53191866]
[1728921316410,0.001652,66013.0,66012.0,1.54191866]
[1728921316611,0.001652,66013.0,66012.0,1.53191866]
[1728921316825,0.001652,66013.0,66012.0,1.27347547]
[1728921317046,0.001652,66013.0,66012.0,1.54591866]
[1728921317473,0.001652,66013.0,66012.0,1.53191866]
[1728921317897,0.001652,66013.0,66012.0,1.54591866]
[1728921318402,0.001652,66013.0,66012.0,1.51791866]
[1728921318656,0.001652,66013.0,66012.0,1.54591866]
[1728921318864,0.001652,66013.0,66012.0,1.53191866]
[1728921319090,0.001652,66013.0,66012.0,1.51791866]
[1728921319326,0.001652,66013.0,66012.0,1.52891866]
[1728921319554,0.001652,66013.0,66012.0,1.53191866]
[1728921319969,0.001652,66013.0,66012.0,1.54591866]
[1728921320170,0.001652,66013.0,66012.0,1.53191866]
[1728921320594,0.001652,66013.0,66012.0,1.51791866]
[1728921321047,0.001652,66013.0,66012.0,1.61191866]
[1728921321249,0.001652,66013.0,66012.0,1.63491866]
[1728921321486,0.001652,66013.0,66012.0,1.54091866]
[1728921321717,0.001652,66013.0,66012.0,1.55191866]
[1728921321929,0.001652,66013.0,66012.0,1.56591866]
[1728921322163,0.001652,66013.0,66012.0,1.55491866]
[1728921322409,0.001652,66013.0,66012.0,1.51791866]
[1728921322621,0.001652,66013.0,66012.0,1.54591866]
[1728921322844,0.001652,66013.0,66012.0,1.53191866]
[1728921323071,0.001652,66013.0,66012.0,1.27347547]
[1728921323293,0.001652,66013.0,66012.0,0.98246]
[1728921323553,0.120233,66015.0,66012.0,0.98246]
[1728921323802,0.077,66016.0,66012.0,0.96846]
[1728921323803,0.01,66013.0,66012.0,0.96846]
[1728921324461,0.01,66013.0,66012.0,0.95446]
[1728921325179,0.01,66013.0,66012.0,0.96846]
[1728921325824,0.01,66013.0,66012.0,0.96446]
[1728921326337,0.01,66013.0,66012.0,0.96846]
[1728921327004,0.01,66013.0,66012.0,0.95846]
[1728921327446,0.01,66013.0,66012.0,0.95446]
[1728921327877,0.01,66013.0,66012.0,0.96346]
[1728921328315,0.01,66013.0,66012.0,0.95746]
[1728921328778,0.01,66013.0,66012.0,0.96146]
[1728921329216,0.01,66013.0,66012.0,0.95846]
[1728921329650,0.01,66013.0,66012.0,0.95946]
[1728921329867,0.011648,66013.0,66012.0,0.95946]
[1728921330499,0.011648,66013.0,66012.0,0.95446]
[1728921330917,0.011648,66013.0,66012.0,0.96546]
[1728921333671,0.011648,66013.0,66012.0,0.96146]
[1728921334140,0.011648,66013.0,66012.0,0.95546]
[1728921334363,0.011648,66013.0,66012.0,0.95846]
[1728921334798,0.011648,66013.0,66012.0,0.95946]
[1728921335009,0.011648,66013.0,66012.0,0.95846]
[1728921335234,0.011648,66013.0,66012.0,0.95446]
[1728921335479,0.28598706,66013.0,66012.0,0.96146]
[1728921335709,0.239933,66013.0,66012.0,0.96146]
[1728921335930,0.09976245,66013.0,66012.0,0.96146]
[1728921336171,0.25124745,66013.0,66012.0,0.96146]
[1728921336385,0.09976245,66013.0,66012.0,0.96546]
[1728921336591,0.09976245,66013.0,66012.0,0.96146]